bitfinex-derivatives/quotes_SOLF0:USTF0_20240926
["timestamp","ask_amount","ask_price","bid_price","bid_amount"]
[1727346701892,3.2828,152.32,152.26,17.35]
[1727346703697,3.2828,152.32,152.27,1.3915]
[1727346703897,3.2828,152.32,152.28,3.2835]
[1727346704098,3.2828,152.32,152.29,17.35]
[1727346705198,18.6506,152.39,152.29,17.35]
[1727346705700,3.2822,152.35,152.3,3.283]
[1727346706003,3.2822,152.35,152.31,1.3546]
[1727346707900,1.3006,152.39,152.31,1.3546]
[1727346708602,3.2824,152.34,152.31,1.3546]
[1727346709396,17.35,152.38,152.31,1.3546]
[1727346709601,1.3006,152.39,152.27,1.3915]
[1727346709602,17.35,152.36,152.27,18.7415]
[1727346709901,3.283,152.31,152.27,18.7415]
[1727346710701,3.2834,152.29,152.26,1.2777]
[1727346710894,17.35,152.36,152.26,1.2777]
[1727346711302,3.2832,152.3,152.26,1.2777]
[1727346712203,3.2836,152.28,152.26,1.2777]
[1727346712403,20.6870565,152.34,152.26,1.2777]
[1727346712904,3.2834,152.29,152.26,1.2777]
[1727346714402,3.2832,152.3,152.26,1.2777]
[1727346714705,17.35,152.34,152.26,1.2777]
[1727346715003,3.2834,152.29,152.26,1.2777]
[1727346715403,3.2832,152.3,152.26,1.2777]
[1727346716405,3.2832,152.3,152.26,4.5616]
[1727346716607,3.2833,152.29,152.26,4.5616]
[1727346718208,3.283,152.31,152.27,17.35]
[1727346718705,3.283,152.31,152.28,3.2835]
[1727346719007,3.2831,152.3,152.27,17.35]
[1727346719403,17.35,152.37,152.27,20.6336]
[1727346719604,6.5637,152.36,152.26,1.2777]
[1727346719803,18.721,152.35,152.26,1.2777]
[1727346720102,3.28349845,152.34,152.26,4.5616]
[1727346720504,3.28349845,152.34,152.26,1.2777]
[1727346720801,18.721,152.35,152.26,1.2777]
[1727346721902,3.2835,152.29,152.26,1.2777]
[1727346722097,3.28163973,152.32,152.2,97.551]
[1727346722303,3.2842,152.25,152.21,1.3705]
[1727346723912,17.35,152.28,152.21,1.3705]
[1727346724410,3.2845,152.24,152.21,1.3705]
[1727346725211,1.3532,152.29,152.21,18.7205]
[1727346726404,1.3982,152.31,152.21,18.7205]
[1727346726810,3.2837,152.28,152.23,3.2846]
[1727346727013,1.3982,152.31,152.21,18.7205]
[1727346727310,3.2839,152.27,152.22,3.2847]
[1727346727501,17.35,152.3,152.21,18.7205]
[1727346729107,3.2843,152.25,152.21,18.7205]
[1727346729512,3.2843,152.25,152.21,22.0055]
[1727346730207,17.35,152.3,152.21,18.7205]
[1727346730813,3.2843,152.25,152.21,1.3705]
[1727346731312,17.35,152.28,152.21,1.3705]
[1727346731911,3.2843,152.25,152.21,4.6555]
[1727346732311,3.2843,152.25,152.21,1.3705]
[1727346732508,17.35,152.28,152.17,1.4038]
[1727346732714,17.35,152.26,152.18,1.3866]
[1727346732905,17.35,152.29,152.18,18.7366]
[1727346733109,3.284,152.26,152.22,3.2847]
[1727346733508,3.284,152.26,152.2,17.35]
[1727346733811,3.284,152.26,152.21,3.2849]
[1727346734212,3.284,152.26,152.22,3.2848]
[1727346734414,3.2839,152.27,152.22,3.2848]
[1727346734612,3.2839,152.27,152.2,17.35]
[1727346734813,17.35,152.3,152.23,3.2845]
[1727346735005,3.2836,152.28,152.22,17.35]
[1727346735410,3.2836,152.28,152.24,3.2843]
[1727346737108,3.2836,152.28,152.23,3.2845]
[1727346737717,3.2838,152.27,152.23,3.2845]
[1727346738921,3.284,152.26,152.22,20.6347]
[1727346739216,17.35,152.3,152.22,3.2847]
[1727346739614,1.3982,152.31,152.2,17.35]
[1727346739811,17.35,152.29,152.2,17.35]
[1727346740016,17.35,152.29,152.19,1.4]
[1727346740417,3.2843,152.25,152.2,3.2851]
[1727346740621,17.35,152.29,152.2,3.2851]
[1727346741218,3.2845,152.24,152.2,3.2851]
[1727346741514,17.35,152.3,152.21,17.35]
[1727346742321,3.2841,152.26,152.21,17.35]
[1727346742518,3.2841,152.26,152.21,20.6349]
[1727346743018,17.35,152.3,152.21,20.6349]
[1727346743219,17.35,152.3,152.22,3.2848]
[1727346744023,1.3982,152.31,152.24,17.35]
[1727346744223,3.283,152.31,152.25,1.282]
[1727346744426,3.20902109,152.34,152.27,3.2837]
[1727346744616,3.20902109,152.34,152.25,2.6348]
[1727346744821,3.283,152.31,152.25,2.6348]
[1727346745026,3.283,152.31,152.26,3.2839]
[1727346745525,3.283,152.31,152.25,2.6348]
[1727346746428,3.283,152.31,152.26,3.2839]
[1727346749025,3.2833,152.3,152.25,19.9848]
[1727346749426,3.2833,152.3,152.26,3.2839]
[1727346749832,3.283,152.31,152.26,3.2839]
[1727346750129,3.26814166,152.34,152.26,3.2839]
[1727346750331,3.2832,152.3,152.26,3.2839]
[1727346750524,1.2705,152.36,152.27,17.35]
[1727346751231,3.2828,152.32,152.28,3.2835]
[1727346751624,3.2824,152.34,152.29,3.2832]
[1727346751824,1.2705,152.36,152.29,3.2832]
[1727346752229,1.2705,152.36,152.29,17.35]
[1727346752529,18.643,152.38,152.29,17.35]
[1727346752530,1.293,152.38,152.29,17.35]
[1727346752730,3.282,152.36,152.31,3.2828]
[1727346752932,1.293,152.38,152.29,17.35]
[1727346753335,3.2821,152.35,152.3,3.2831]
[1727346753635,3.2821,152.35,152.29,17.35]
[1727346753838,3.2818,152.36,152.31,3.2828]
[1727346754234,1.3304,152.41,152.32,17.35]
[1727346754436,1.3304,152.41,152.33,1.3312]
[1727346754631,17.35,152.4,152.33,1.3312]
[1727346755935,3.2816,152.37,152.33,1.3312]
[1727346756131,17.35,152.4,152.33,1.3312]
[1727346756336,18.6808,152.4,152.33,1.3312]
[1727346756934,1.3308,152.4,152.33,1.3312]
[1727346757538,3.2812,152.39,152.34,3.2822]
[1727346757738,1.3304,152.41,152.33,1.3312]
[1727346758141,3.2250364,152.42,152.33,18.6812]
[1727346758435,11.1,152.41,152.36,11.1]
[1727346758837,11.1,152.41,152.33,1.3312]
[1727346759033,11.1,152.41,152.35,11.1]
[1727346759338,3.2814,152.39,152.35,11.1]
[1727346760147,9.8342,152.54,152.38,11.1]
[1727346760337,1.3558,152.49,152.4,17.32]
[1727346760639,1.3558,152.49,152.42,3.2804]
[1727346760841,4.66570794,152.49,152.42,20.6004]
[1727346761039,4.66570794,152.49,152.42,17.32]
[1727346761342,4.66570794,152.49,152.4,3.2809]
[1727346761540,4.66570794,152.49,152.39,17.32]
[1727346761845,3.2798,152.46,152.4,4.6059]
[1727346762039,4.65092716,152.49,152.4,1.3251]
[1727346762342,3.2798,152.46,152.4,1.3251]
[1727346762540,4.65092716,152.49,152.4,1.3251]
[1727346762943,1.3558,152.49,152.4,1.3251]
[1727346763544,3.28,152.45,152.4,1.3251]
[1727346763844,1.3558,152.49,152.4,1.3251]
[1727346764144,3.2803,152.44,152.4,1.3251]
[1727346764745,3.2803,152.43,152.4,1.3251]
[1727346765044,1.3558,152.49,152.4,1.3251]
[1727346765247,3.2805,152.43,152.4,1.3251]
[1727346765740,3.2802,152.44,152.4,1.3251]
[1727346766545,1.3558,152.49,152.4,1.3251]
[1727346766546,3.2803,152.43,152.4,1.3251]
[1727346767044,1.3558,152.49,152.4,1.3251]
[1727346767241,1.3558,152.49,152.42,17.32]
[1727346767939,18.6758,152.49,152.4,1.3251]
[1727346768844,3.2807,152.41,152.4,1.3251]
[1727346769245,3.2812,152.39,152.38,1.2991]
[1727346769446,17.32,152.45,152.35,97.4815]
[1727346769642,17.32,152.47,152.37,17.32]
[1727346769947,1.3558,152.49,152.37,17.32]
[1727346770245,107.20336795,152.56,152.46,17.32]
[1727346770546,127.83087576,152.56,152.46,17.32]
[1727346770745,110.51087576,152.56,152.46,17.32]
[1727346771045,3.2788,152.51,152.35,83.36327789]
[1727346771246,20.56807577,152.55,152.44,17.32]
[1727346771438,2.6491,152.59,152.44,17.32]
[1727346771741,2.6491,152.59,152.46,17.32]
[1727346772245,3.2775,152.57,152.49,17.32]
[1727346772543,17.32,152.57,152.47,1.3343]
[1727346773048,3.2784,152.52,152.47,1.3343]
[1727346773243,2.6491,152.59,152.47,1.3343]
[1727346773244,17.32,152.55,152.47,1.3343]
[1727346773440,17.32,152.57,152.47,1.3343]
[1727346773644,3.2781,152.54,152.47,1.3343]
[1727346773841,17.32,152.57,152.47,1.3343]
[1727346774245,2.6491,152.59,152.47,1.3343]
[1727346774441,17.32,152.56,152.47,1.3343]
[1727346774848,3.278,152.54,152.47,1.3343]
[1727346775149,17.32,152.56,152.47,1.3343]
[1727346775541,3.31604501,152.6,152.49,17.32]
[1727346775744,1.3102,152.59,152.47,18.6543]
[1727346775951,17.32,152.56,152.47,18.6543]
[1727346776343,3.28630536,152.6,152.49,17.32]
[1727346776543,17.32,152.59,152.49,17.32]
[1727346776748,17.32,152.57,152.47,18.6543]
[1727346776951,3.278,152.54,152.47,18.6543]
[1727346777147,17.32,152.57,152.47,18.6543]
[1727346777644,3.2782,152.53,152.47,18.6543]
[1727346777839,17.32,152.56,152.47,18.6543]
[1727346778043,18.6126,152.56,152.47,18.6543]
[1727346778243,18.6126,152.56,152.47,1.3343]
[1727346778641,18.6126,152.56,152.47,18.6543]
[1727346779046,3.2782,152.53,152.47,18.6543]
[1727346779453,1.2926,152.56,152.47,18.6543]
[1727346780354,17.32,152.54,152.47,1.3343]
[1727346780652,17.32,152.54,152.46,80.0906]
[1727346780653,3.279,152.5,152.46,78.76]
[1727346780849,17.32,152.54,152.46,78.76]
[1727346781244,3.2788,152.51,152.46,78.76]
[1727346781652,3.2788,152.51,152.45,1.3325]
[1727346781853,1.2926,152.56,152.47,17.32]
[1727346782054,1.2926,152.56,152.45,1.3325]
[1727346782055,17.32,152.6,152.49,17.32]
[1727346782644,2.5592,152.69,152.49,17.32]
[1727346782950,3.2779,152.54,152.49,17.32]
[1727346783555,3.2778,152.55,152.49,17.32]
[1727346784054,1.3432,152.59,152.49,20.599]
[1727346784055,3.2776,152.56,152.49,20.599]
[1727346784452,17.32,152.62,152.51,17.32]
[1727346784654,3.2775,152.57,152.52,1.2777]
[1727346784954,17.32,152.62,152.52,1.2777]
[1727346785260,3.3129953,152.63,152.53,17.32]
[1727346785457,3.3129953,152.63,152.53,18.6418]
[1727346785660,1.3432,152.68,152.53,18.6418]
[1727346785661,17.32,152.64,152.53,18.6418]
[1727346785957,17.32,152.62,152.53,1.3218]
[1727346786259,1.3432,152.61,152.53,18.6418]
[1727346786757,3.277,152.59,152.53,18.6418]
[1727346787453,1.3432,152.61,152.53,18.6418]
[1727346787649,1.3432,152.61,152.52,1.2777]
[1727346787855,17.32,152.59,152.5,1.2756]
[1727346788063,17.32,152.57,152.48,1.383]
[1727346788264,17.32,152.55,152.48,1.383]
[1727346788452,20.53678606,152.55,152.48,1.383]
[1727346788659,17.32,152.56,152.48,1.383]
[1727346789359,1.3432,152.61,152.48,1.383]
[1727346789551,17.32,152.56,152.48,1.383]
[1727346789757,1.3432,152.61,152.48,1.383]
[1727346790059,17.32,152.57,152.48,1.383]
[1727346791060,17.32,152.58,152.48,18.703]
[1727346791462,3.278,152.54,152.48,21.9822]
[1727346791662,17.32,152.58,152.48,21.9822]
[1727346792068,3.2779,152.55,152.48,21.9822]
[1727346792266,17.32,152.58,152.48,18.703]
[1727346792860,17.32,152.58,152.48,21.9821]
[1727346793059,3.2779,152.55,152.48,21.9821]
[1727346793461,17.32,152.59,152.49,3.279]
[1727346793870,17.32,152.59,152.48,18.703]
[1727346794075,17.32,152.59,152.48,21.9822]
[1727346794671,3.2779,152.55,152.49,3.2789]
[1727346794873,17.32,152.53,152.48,1.383]
[1727346795073,3.2788,152.5,152.48,1.383]
[1727346795567,3.279,152.49,152.44,2.7469]
[1727346796065,3.2786,152.51,152.44,2.7469]
[1727346796272,17.32,152.53,152.44,2.7469]
[1727346796865,17.32,152.51,152.43,1.2689]
[1727346797163,17.32,152.49,152.42,78.72]
[1727346797370,1.343,152.53,152.43,17.32]
[1727346797569,1.37,152.54,152.43,18.6116]
[1727346797570,18.69,152.54,152.43,18.6116]
[1727346797769,18.69,152.54,152.44,5.9407]
[1727346798166,18.69,152.54,152.44,2.6608]
[1727346798470,18.69,152.54,152.44,19.9808]
[1727346798666,18.69,152.54,152.44,2.6608]
[1727346798867,17.32,152.57,152.46,20.5996]
[1727346799169,17.32,152.57,152.46,17.32]
[1727346799468,3.2789,152.5,152.46,17.32]
[1727346799661,3.2789,152.5,152.44,19.9808]
[1727346799965,17.32,152.53,152.44,2.6608]
[1727346800168,18.7197,152.53,152.44,2.6608]
[1727346800374,3.2787,152.51,152.44,5.9407]
[1727346800673,3.2787,152.51,152.44,2.6608]
[1727346800870,1.3997,152.53,152.44,2.6608]
[1727346801071,1.3997,152.53,152.44,5.9407]
[1727346801471,27.73,152.58,152.45,27.73]
[1727346801893,27.73,152.56,152.44,2.6608]
[1727346802071,3.36320299,152.55,152.44,2.6608]
[1727346802268,27.73,152.56,152.44,2.6608]
[1727346802269,3.279,152.49,152.44,2.6608]
[1727346803174,29.0881,152.53,152.4,27.73]
[1727346803474,29.0881,152.53,152.4,31.7993]
[1727346803771,1.3581,152.53,152.42,27.73]
[1727346804168,3.279,152.49,152.43,3.2802]
[1727346804480,27.73,152.59,152.45,27.73]
[1727346804676,3.2783,152.53,152.47,3.2793]
[1727346804878,3.2783,152.53,152.48,1.2672]
[1727346805067,29.1321,152.59,152.48,1.2672]
[1727346806575,3.2779,152.55,152.49,3.279]
[1727346806975,3.2771,152.58,152.52,3.2782]
[1727346807174,1.4021,152.59,152.52,3.2782]
[1727346807375,1.4021,152.59,152.48,1.2672]
[1727346807776,3.2776,152.56,152.48,1.2672]
[1727346808375,3.2776,152.56,152.5,3.2787]
[1727346808577,3.2777,152.55,152.5,3.2787]
[1727346808970,1.4021,152.59,152.5,3.2787]
[1727346809479,1.4021,152.59,152.48,1.2672]
[1727346810075,3.2775,152.56,152.5,3.2787]
[1727346811177,3.2775,152.56,152.51,3.2786]
[1727346811984,1.4021,152.59,152.48,1.2672]
[1727346812276,27.73,152.58,152.48,1.2672]
[1727346812674,3.2779,152.55,152.49,3.279]
[1727346812873,27.73,152.58,152.49,3.279]
[1727346813070,27.73,152.58,152.48,1.2672]
[1727346813273,27.73,152.58,152.48,4.5463]
[1727346813471,27.73,152.58,152.48,1.2672]
[1727346813675,3.2785,152.52,152.48,1.2672]
[1727346813871,29.0464,152.58,152.48,1.2672]
[1727346814181,3.2782,152.53,152.48,4.5464]
[1727346814573,29.0464,152.58,152.48,1.2672]
[1727346814778,3.2782,152.53,152.48,4.5464]
[1727346815283,29.0464,152.58,152.48,1.2672]
[1727346815478,3.2777,152.55,152.49,3.279]
[1727346815678,29.0464,152.58,152.48,1.2672]
[1727346815880,1.3164,152.58,152.48,1.2672]
[1727346816182,29.0464,152.58,152.48,4.5463]
[1727346816787,1.3164,152.58,152.48,4.5463]
[1727346817394,1.3164,152.58,152.48,1.2672]
[1727346817992,27.73,152.57,152.48,1.2672]
[1727346818494,3.2787,152.51,152.48,1.2672]
[1727346819692,1.3164,152.58,152.48,1.2672]
[1727346819993,6.5509,152.66,152.51,27.73]
[1727346820291,3.2771,152.58,152.52,3.2783]
[1727346821290,1.2764,152.62,152.49,1.3223]
[1727346821291,27.73,152.61,152.49,1.3223]
[1727346821691,3.2774,152.57,152.51,3.2784]
[1727346821897,3.2774,152.57,152.49,1.3223]
[1727346822296,3.2774,152.57,152.52,3.2782]
[1727346822507,3.2772,152.58,152.5,17.32]
[1727346822891,3.2772,152.58,152.53,3.2781]
[1727346823286,3.277,152.59,152.53,3.2781]
[1727346823593,18.5964,152.62,152.52,17.32]
[1727346824798,17.32,152.6,152.5,17.32]
[1727346825199,3.2772,152.58,152.5,17.32]
[1727346825796,1.2764,152.62,152.52,17.32]
[1727346826299,3.2772,152.58,152.53,3.278]
[1727346826596,1.2764,152.62,152.52,17.32]
[1727346826792,3.277,152.59,152.54,3.2779]
[1727346826998,1.2764,152.62,152.52,17.32]
[1727346827197,18.5964,152.62,152.52,17.32]
[1727346827387,3.2771,152.59,152.53,3.2781]
[1727346827591,18.5964,152.62,152.53,3.2781]
[1727346827898,18.5964,152.62,152.52,17.32]
[1727346828097,3.2771,152.59,152.54,3.2779]
[1727346828297,18.5964,152.62,152.52,17.32]
[1727346828996,3.2769,152.59,152.53,3.278]
[1727346829197,3.2769,152.59,152.52,17.32]
[1727346829598,3.2771,152.58,152.52,17.32]
[1727346830101,3.2771,152.58,152.53,3.2781]
[1727346831896,18.5964,152.62,152.51,17.32]
[1727346832901,3.2773,152.58,152.53,3.2781]
[1727346833098,18.5964,152.62,152.51,17.32]
[1727346833497,3.2769,152.59,152.53,3.278]
[1727346833804,18.5964,152.62,152.53,3.278]
[1727346834397,18.5964,152.62,152.52,3.2783]
[1727346834597,18.5964,152.62,152.49,1.3223]
[1727346834598,17.32,152.6,152.5,17.32]
[1727346836205,3.2775,152.56,152.51,3.2784]
[1727346836705,3.2774,152.57,152.52,3.2784]
[1727346837702,17.32,152.6,152.49,1.3223]
[1727346837902,17.32,152.58,152.48,79.9872]
[1727346838099,1.313,152.57,152.48,79.9872]
[1727346838407,3.2779,152.55,152.5,3.2787]
[1727346838606,1.313,152.57,152.48,97.3072]
[1727346838899,3.2776,152.56,152.5,3.2787]
[1727346839106,1.313,152.57,152.5,3.2787]
[1727346839501,3.2778,152.55,152.5,3.2787]
[1727346840005,3.2778,152.55,152.48,1.2672]
[1727346840006,3.25340848,152.55,152.48,1.2672]
[1727346840205,1.3571,152.56,152.48,1.2672]
[1727346841103,3.2787,152.51,152.46,4.6062]
[1727346841408,20.58586182,152.54,152.46,1.3267]
[1727346841803,3.2787,152.51,152.46,4.6062]
[1727346842004,20.58586182,152.54,152.46,1.3267]
[1727346842612,18.6771,152.56,152.47,17.32]
[1727346842811,1.3571,152.56,152.47,17.32]
[1727346843017,6.56695425,152.55,152.5,3.2787]
[1727346843511,4.6348,152.56,152.51,3.2785]
[1727346843702,1.3571,152.56,152.51,3.2785]
[1727346843908,1.3571,152.56,152.49,17.32]
[1727346844106,3.2774,152.57,152.52,3.2782]
[1727346844604,17.32,152.59,152.52,3.2782]
[1727346844804,3.2775,152.56,152.49,17.32]
[1727346845211,3.2775,152.56,152.51,3.2784]
[1727346845802,3.2774,152.57,152.52,3.2782]
[1727346846015,1.3608,152.6,152.51,17.32]
[1727346846306,3.2778,152.55,152.5,3.2787]
[1727346846514,20.0466,152.6,152.5,17.32]
[1727346847113,3.2774,152.57,152.52,3.2783]
[1727346847306,20.0466,152.6,152.52,3.2783]
[1727346847903,3.2776,152.56,152.51,3.2785]
[1727346848513,3.2777,152.55,152.5,20.5987]
[1727346848717,20.0466,152.6,152.5,17.32]
[1727346849209,3.2773,152.57,152.52,3.2782]
[1727346849510,20.0466,152.6,152.5,17.32]
[1727346850006,3.2772,152.58,152.5,17.32]
[1727346850215,20.0466,152.6,152.5,17.32]
[1727346850707,20.0466,152.6,152.47,1.3415]
[1727346850708,2.7266,152.6,152.47,1.3415]
[1727346850937,17.32,152.56,152.47,1.3415]
[1727346851105,3.2781,152.54,152.48,3.2791]
[1727346851310,3.34766172,152.55,152.48,3.2791]
[1727346851506,3.34766172,152.55,152.47,1.3415]
[1727346851715,17.32,152.56,152.47,4.6209]
[1727346851716,3.25483512,152.54,152.47,4.6209]
[1727346851917,17.32,152.56,152.47,4.6209]
[1727346852414,3.2788,152.5,152.47,1.3415]
[1727346852805,3.25024299,152.53,152.44,78.7]
[1727346853006,3.2789,152.5,152.44,81.98]
[1727346853208,3.2003856,152.51,152.44,78.7]
[1727346853521,18.7084,152.52,152.44,78.7]
[1727346853918,21.96702974,152.52,152.44,78.7]
[1727346854313,4.64702974,152.52,152.44,78.7]
[1727346854514,17.32,152.51,152.44,78.7]
[1727346854710,3.25862974,152.52,152.44,78.7]
[1727346854918,2.6379,152.58,152.48,17.32]
[1727346855118,19.9579,152.58,152.48,17.32]
[1727346855314,2.6379,152.58,152.48,17.32]
[1727346855518,19.9579,152.58,152.48,17.32]
[1727346855818,3.278,152.54,152.48,20.5992]
[1727346856020,3.31211445,152.55,152.48,17.32]
[1727346856218,19.9579,152.58,152.48,17.32]
[1727346856715,17.32,152.56,152.47,3.2793]
[1727346857120,3.2783,152.53,152.47,3.2793]
[1727346857418,3.2783,152.53,152.48,3.2792]
[1727346858221,3.278,152.54,152.49,3.279]
[1727346858524,19.9579,152.58,152.48,17.32]
[1727346858716,3.2779,152.55,152.5,3.2787]
[1727346859621,3.28533046,152.54,152.47,1.3573]
[1727346859818,17.32,152.56,152.46,1.3301]
[1727346860018,3.2783,152.53,152.46,18.6501]
[1727346860516,1.3243,152.57,152.49,3.2789]
[1727346861021,3.2779,152.55,152.5,3.2788]
[1727346862321,3.2776,152.56,152.5,3.2788]
[1727346862515,1.3243,152.57,152.5,3.2788]
[1727346862920,17.32,152.56,152.46,18.6501]
[1727346863119,1.2995,152.58,152.46,18.6501]
[1727346863320,3.2784,152.52,152.47,3.2793]
[1727346864020,3.2786,152.51,152.47,3.2793]
[1727346864525,17.32,152.55,152.47,3.2793]
[1727346864724,3.2786,152.52,152.47,3.2793]
[1727346864921,3.23785656,152.54,152.47,3.2793]
[1727346865520,3.2784,152.52,152.48,3.2792]
[1727346866121,3.23785656,152.54,152.47,3.2794]
[1727346866324,17.32,152.55,152.46,1.3301]
[1727346866626,17.32,152.53,152.44,3.2799]
[1727346866827,1.3299,152.52,152.44,3.2799]
[1727346867129,3.2794,152.48,152.43,3.2803]
[1727346867425,3.2794,152.48,152.42,19.9736]
[1727346867426,1.3299,152.52,152.42,1.3613]
[1727346867619,17.32,152.5,152.42,1.3613]
[1727346868021,1.2842,152.51,152.42,18.6813]
[1727346868217,21.97875365,152.52,152.44,3.2799]
[1727346868616,3.2792,152.49,152.44,3.2799]
[1727346868819,4.65875365,152.52,152.42,1.3613]
[1727346869022,17.32,152.5,152.42,1.3613]
[1727346869729,3.2794,152.48,152.42,1.3613]
[1727346869922,3.2794,152.48,152.43,3.2803]
[1727346870128,3.2794,152.48,152.42,1.3613]
[1727346870518,3.2794,152.48,152.43,3.2802]
[1727346871019,17.32,152.5,152.42,1.3613]
[1727346871530,17.32,152.5,152.42,18.6813]
[1727346871725,4.65875365,152.52,152.44,17.32]
[1727346871926,1.3299,152.52,152.43,17.32]
[1727346872121,1.3299,152.52,152.42,1.3613]
[1727346872122,1.2842,152.56,152.47,17.32]
[1727346872426,17.32,152.57,152.48,1.4024]
[1727346872832,17.32,152.55,152.48,1.4024]
[1727346873028,3.32392934,152.54,152.48,1.4024]
[1727346873530,3.2787,152.51,152.48,1.4024]
[1727346873725,3.33115077,152.53,152.48,1.4024]
[1727346873926,17.32,152.55,152.48,1.4024]
[1727346874431,3.28455207,152.55,152.48,1.4024]
[1727346874630,3.2781,152.54,152.49,3.279]
[1727346874826,3.29242791,152.55,152.48,1.4024]
[1727346875032,17.32,152.57,152.48,1.4024]
[1727346875228,3.2782,152.53,152.48,6.0129]
[1727346875533,3.30325718,152.55,152.48,2.7338]
[1727346875734,3.2783,152.53,152.48,6.013]
[1727346876631,3.2784,152.52,152.48,2.7338]
[1727346878233,3.2786,152.51,152.48,2.7338]
[1727346878431,3.2786,152.51,152.48,1.4024]
[1727346878930,3.2785,152.52,152.48,1.4024]
[1727346879531,3.2785,152.52,152.48,4.6816]
[1727346879729,3.2782,152.53,152.48,4.6816]
[1727346881329,1.3776,152.6,152.48,4.6816]
[1727346881330,1.3776,152.6,152.49,17.32]
[1727346881534,17.32,152.59,152.49,18.6397]
[1727346882442,18.6446,152.61,152.51,17.32]
[1727346883434,3.277,152.59,152.53,3.278]
[1727346884038,3.2771,152.58,152.53,3.278]
[1727346884637,3.26126697,152.63,152.53,17.32]
[1727346884938,17.32,152.64,152.54,1.2785]
[1727346885140,17.32,152.62,152.54,1.2785]
[1727346885441,3.2768,152.6,152.54,4.5564]
[1727346885843,1.3809,152.65,152.54,1.2785]
[1727346886038,17.32,152.63,152.55,1.3551]
[1727346887736,3.2764,152.62,152.56,3.2774]
[1727346888138,17.32,152.63,152.55,1.3551]
[1727346889245,3.2765,152.61,152.55,4.6328]
[1727346890044,3.2767,152.6,152.55,1.3551]
[1727346890641,3.2767,152.6,152.55,4.6328]
[1727346891733,3.2769,152.59,152.55,1.3551]
[1727346892746,17.32,152.6,152.54,1.2785]
[1727346893739,3.2776,152.56,152.54,1.2785]
[1727346893956,17.32,152.6,152.54,1.2785]
[1727346894947,3.2777,152.56,152.54,1.2785]
[1727346895747,17.32,152.62,152.54,1.2785]
[1727346896144,3.2773,152.58,152.54,1.2785]
[1727346896546,20.59517169,152.62,152.54,1.2785]
[1727346897347,3.2769,152.59,152.54,4.5563]
[1727346898139,3.2769,152.59,152.55,3.2777]
[1727346898546,20.59517169,152.62,152.55,3.2777]
[1727346898547,3.2767,152.6,152.55,3.2777]
[1727346898948,20.59517169,152.62,152.54,4.5563]
[1727346899447,20.63387677,152.62,152.54,1.2785]
[1727346900449,3.277,152.59,152.54,4.5563]
[1727346902248,16.0,152.52,152.41,9.90249849]
[1727346902553,1.3219,152.51,152.4,17.32]
[1727346902744,3.2791,152.49,152.42,17.32]
[1727346902956,16.0,152.52,152.44,17.32]
[1727346903353,16.0,152.52,152.46,3.2796]
[1727346904151,16.0,152.52,152.45,3.2797]
[1727346904152,3.2789,152.5,152.45,3.2797]